[Event "Live Chess"]
[Site "Chess.com"]
[Date "2011.02.01"]
[Round "-"]
[White "hipposcottimus"]
[Black "capster"]
[Result "0-1"]
[CurrentPosition "6k1/5ppp/1p1p4/pQ1P4/8/2P4P/PP2r1q1/R6K w - -"]
[Timezone "UTC"]
[ECO "C50"]
[ECOUrl "https://www.chess.com/openings/Italian-Game"]
[UTCDate "2011.02.01"]
[UTCTime "04:39:33"]
[WhiteElo "1694"]
[BlackElo "1640"]
[TimeControl "60"]
[Termination "capster won by checkmate"]
[StartTime "04:39:33"]
[EndDate "2011.02.01"]
[EndTime "04:41:35"]
[Link "https://www.chess.com/game/live/93526362"]

1. e4 {[%clk 0:01:00]} 1... e5 {[%clk 0:01:00]} 2. Nf3 {[%clk 0:00:59.4]} 2... Nc6 {[%clk 0:00:59.4]} 3. Bc4 {[%clk 0:00:59.1]} 3... Nh6 {[%clk 0:00:53.2]} 4. d4 {[%clk 0:00:57]} 4... Ng4 {[%clk 0:00:50.9]} 5. h3 {[%clk 0:00:54.8]} 5... Nf6 {[%clk 0:00:49.4]} 6. d5 {[%clk 0:00:51.4]} 6... Nd4 {[%clk 0:00:46.8]} 7. Bg5 {[%clk 0:00:49.2]} 7... Nxf3+ {[%clk 0:00:45.2]} 8. Qxf3 {[%clk 0:00:48.6]} 8... Be7 {[%clk 0:00:43.8]} 9. Nc3 {[%clk 0:00:44.7]} 9... d6 {[%clk 0:00:43.1]} 10. Bb5+ {[%clk 0:00:42]} 10... Bd7 {[%clk 0:00:41.6]} 11. Bc4 {[%clk 0:00:40.4]} 11... c6 {[%clk 0:00:40.7]} 12. Bd3 {[%clk 0:00:40]} 12... O-O {[%clk 0:00:39.1]} 13. O-O {[%clk 0:00:37.9]} 13... cxd5 {[%clk 0:00:38.5]} 14. exd5 {[%clk 0:00:35.7]} 14... e4 {[%clk 0:00:36.9]} 15. Bxe4 {[%clk 0:00:33.5]} 15... Nxe4 {[%clk 0:00:35.6]} 16. Bxe7 {[%clk 0:00:28.4]} 16... Qxe7 {[%clk 0:00:31.9]} 17. Nxe4 {[%clk 0:00:27.6]} 17... Rfe8 {[%clk 0:00:27.7]} 18. Ng3 {[%clk 0:00:27.2]} 18... Rac8 {[%clk 0:00:22.8]} 19. Qb3 {[%clk 0:00:26.6]} 19... b6 {[%clk 0:00:19.7]} 20. c3 {[%clk 0:00:25.9]} 20... a5 {[%clk 0:00:15.2]} 21. Qc2 {[%clk 0:00:25.5]} 21... Bb5 {[%clk 0:00:13.3]} 22. Nf5 {[%clk 0:00:25.1]} 22... Qf6 {[%clk 0:00:11.4]} 23. Rfd1 {[%clk 0:00:21.3]} 23... Re2 {[%clk 0:00:08.6]} 24. Rd2 {[%clk 0:00:18.2]} 24... Rxd2 {[%clk 0:00:07]} 25. Qxd2 {[%clk 0:00:17.9]} 25... Re8 {[%clk 0:00:05.9]} 26. Qc2 {[%clk 0:00:17.4]} 26... Re2 {[%clk 0:00:03.9]} 27. Qb3 {[%clk 0:00:17]} 27... Qxf5 {[%clk 0:00:02.6]} 28. Qxb5 {[%clk 0:00:16.4]} 28... Qxf2+ {[%clk 0:00:01.7]} 29. Kh1 {[%clk 0:00:10.9]} 29... Qxg2# {[%clk 0:00:01.6]} 0-1

[Event "Live Chess"]
[Site "Chess.com"]
[Date "2011.02.01"]
[Round "-"]
[White "dspitt01"]
[Black "hipposcottimus"]
[Result "1-0"]
[CurrentPosition "3k3Q/6R1/8/8/5P2/P1P5/2P3K1/8 b - -"]
[Timezone "UTC"]
[ECO "D00"]
[ECOUrl "https://www.chess.com/openings/Queens-Pawn-Opening-Chigorin-Variation-2...c6"]
[UTCDate "2011.02.01"]
[UTCTime "04:36:45"]
[WhiteElo "1904"]
[BlackElo "1694"]
[TimeControl "60"]
[Termination "dspitt01 won by checkmate"]
[StartTime "04:36:45"]
[EndDate "2011.02.01"]
[EndTime "04:38:42"]
[Link "https://www.chess.com/game/live/93525678"]

1. d4 {[%clk 0:01:00]} 1... d5 {[%clk 0:01:00]} 2. Nc3 {[%clk 0:00:59.6]} 2... c6 {[%clk 0:00:59]} 3. a3 {[%clk 0:00:59.3]} 3... e6 {[%clk 0:00:58.7]} 4. Nf3 {[%clk 0:00:59]} 4... Nf6 {[%clk 0:00:58.2]} 5. Bg5 {[%clk 0:00:58.7]} 5... Be7 {[%clk 0:00:57.3]} 6. Bxf6 {[%clk 0:00:58.4]} 6... Bxf6 {[%clk 0:00:56.9]} 7. g3 {[%clk 0:00:58.1]} 7... O-O {[%clk 0:00:56.7]} 8. Bh3 {[%clk 0:00:57.6]} 8... Nd7 {[%clk 0:00:56.3]} 9. O-O {[%clk 0:00:56.1]} 9... e5 {[%clk 0:00:55.9]} 10. Bxd7 {[%clk 0:00:54.7]} 10... Bxd7 {[%clk 0:00:55.7]} 11. dxe5 {[%clk 0:00:54.2]} 11... Be7 {[%clk 0:00:54.8]} 12. Nd4 {[%clk 0:00:53.2]} 12... f6 {[%clk 0:00:53.9]} 13. exf6 {[%clk 0:00:52]} 13... Bxf6 {[%clk 0:00:52.4]} 14. e4 {[%clk 0:00:49.6]} 14... c5 {[%clk 0:00:51.8]} 15. Nf5 {[%clk 0:00:44.9]} 15... Bxc3 {[%clk 0:00:50.9]} 16. bxc3 {[%clk 0:00:43.5]} 16... dxe4 {[%clk 0:00:50.6]} 17. Nd6 {[%clk 0:00:36.9]} 17... Bh3 {[%clk 0:00:50.2]} 18. Qd5+ {[%clk 0:00:34.4]} 18... Rf7 {[%clk 0:00:44.1]} 19. Rfe1 {[%clk 0:00:32.8]} 19... Qf6 {[%clk 0:00:37.9]} 20. Qxf7+ {[%clk 0:00:30.4]} 20... Qxf7 {[%clk 0:00:36.3]} 21. Nxf7 {[%clk 0:00:30.1]} 21... Kxf7 {[%clk 0:00:36.1]} 22. Rxe4 {[%clk 0:00:29.8]} 22... Re8 {[%clk 0:00:35.7]} 23. Rxe8 {[%clk 0:00:27.9]} 23... Kxe8 {[%clk 0:00:35.3]} 24. Re1+ {[%clk 0:00:27.5]} 24... Kf7 {[%clk 0:00:35]} 25. Re4 {[%clk 0:00:26.8]} 25... b6 {[%clk 0:00:34.7]} 26. g4 {[%clk 0:00:25.9]} 26... Bxg4 {[%clk 0:00:33.6]} 27. Rxg4 {[%clk 0:00:24.4]} 27... h5 {[%clk 0:00:33.3]} 28. Rf4+ {[%clk 0:00:23.4]} 28... Kg6 {[%clk 0:00:32.4]} 29. Re4 {[%clk 0:00:22.6]} 29... Kh7 {[%clk 0:00:31.8]} 30. Re7 {[%clk 0:00:22]} 30... Kh6 {[%clk 0:00:31.2]} 31. Rxa7 {[%clk 0:00:21]} 31... g6 {[%clk 0:00:30.9]} 32. Rb7 {[%clk 0:00:20.5]} 32... g5 {[%clk 0:00:28.5]} 33. Rxb6+ {[%clk 0:00:19.8]} 33... Kg7 {[%clk 0:00:28.1]} 34. Rc6 {[%clk 0:00:19.4]} 34... Kf7 {[%clk 0:00:27.6]} 35. Rxc5 {[%clk 0:00:18.8]} 35... Ke7 {[%clk 0:00:27.3]} 36. Rc6 {[%clk 0:00:18.2]} 36... Kd7 {[%clk 0:00:26.6]} 37. Rh6 {[%clk 0:00:17.4]} 37... Ke7 {[%clk 0:00:26.3]} 38. Rxh5 {[%clk 0:00:16.9]} 38... Kd7 {[%clk 0:00:26]} 39. Rxg5 {[%clk 0:00:16.4]} 39... Ke7 {[%clk 0:00:25.6]} 40. Rg6 {[%clk 0:00:14.9]} 40... Kf7 {[%clk 0:00:24.2]} 41. Rg5 {[%clk 0:00:14.3]} 41... Kf6 {[%clk 0:00:23.5]} 42. h4 {[%clk 0:00:14]} 42... Kf7 {[%clk 0:00:21.9]} 43. Kg2 {[%clk 0:00:13.7]} 43... Kf6 {[%clk 0:00:21.6]} 44. f4 {[%clk 0:00:13.4]} 44... Kf7 {[%clk 0:00:21.4]} 45. h5 {[%clk 0:00:13.2]} 45... Kf6 {[%clk 0:00:21.1]} 46. h6 {[%clk 0:00:12.9]} 46... Kf7 {[%clk 0:00:20.8]} 47. h7 {[%clk 0:00:12.6]} 47... Ke6 {[%clk 0:00:20.5]} 48. h8=Q {[%clk 0:00:11.6]} 48... Kd6 {[%clk 0:00:20.2]} 49. Qh6+ {[%clk 0:00:11.3]} 49... Kc7 {[%clk 0:00:19.1]} 50. Rg7+ {[%clk 0:00:11]} 50... Kd8 {[%clk 0:00:18.4]} 51. Qh8# {[%clk 0:00:10.7]} 1-0

[Event "Live Chess"]
[Site "Chess.com"]
[Date "2011.02.01"]
[Round "-"]
[White "sekar_risbaya"]
[Black "hipposcottimus"]
[Result "0-1"]
[CurrentPosition "8/8/4k1p1/2R4p/4Pp2/5P2/4KP1P/8 w - h6"]
[Timezone "UTC"]
[ECO "A00"]
[ECOUrl "https://www.chess.com/openings/Vant-Kruijs-Opening-1...e5"]
[UTCDate "2011.02.01"]
[UTCTime "04:33:16"]
[WhiteElo "1607"]
[BlackElo "1698"]
[TimeControl "60"]
[Termination "hipposcottimus won on time"]
[StartTime "04:33:16"]
[EndDate "2011.02.01"]
[EndTime "04:35:16"]
[Link "https://www.chess.com/game/live/93524937"]

1. e3 {[%clk 0:01:00]} 1... e5 {[%clk 0:01:00]} 2. Nf3 {[%clk 0:00:58.9]} 2... e4 {[%clk 0:00:59.5]} 3. Ng5 {[%clk 0:00:56.7]} 3... f6 {[%clk 0:00:58.4]} 4. Nxe4 {[%clk 0:00:55.2]} 4... d5 {[%clk 0:00:58.2]} 5. Nec3 {[%clk 0:00:54.7]} 5... Bb4 {[%clk 0:00:57.4]} 6. a3 {[%clk 0:00:52.7]} 6... Bxc3 {[%clk 0:00:55.6]} 7. dxc3 {[%clk 0:00:51.4]} 7... c5 {[%clk 0:00:55.3]} 8. Bb5+ {[%clk 0:00:49]} 8... Nc6 {[%clk 0:00:55]} 9. Bxc6+ {[%clk 0:00:48]} 9... bxc6 {[%clk 0:00:54.7]} 10. O-O {[%clk 0:00:47.5]} 10... Ne7 {[%clk 0:00:54.4]} 11. Nd2 {[%clk 0:00:46.2]} 11... O-O {[%clk 0:00:54.1]} 12. Nb3 {[%clk 0:00:45.5]} 12... c4 {[%clk 0:00:51.8]} 13. Nc5 {[%clk 0:00:44.3]} 13... Qb6 {[%clk 0:00:51.4]} 14. b4 {[%clk 0:00:42.5]} 14... cxb3 {[%clk 0:00:49.8]} 15. Nxb3 {[%clk 0:00:41.3]} 15... Bb7 {[%clk 0:00:47.9]} 16. Nd4 {[%clk 0:00:39.6]} 16... c5 {[%clk 0:00:46.8]} 17. Nf3 {[%clk 0:00:38.5]} 17... d4 {[%clk 0:00:46.1]} 18. cxd4 {[%clk 0:00:36.5]} 18... cxd4 {[%clk 0:00:45.2]} 19. Qxd4 {[%clk 0:00:35.4]} 19... Bxf3 {[%clk 0:00:44.4]} 20. Qxb6 {[%clk 0:00:32.9]} 20... axb6 {[%clk 0:00:43.3]} 21. gxf3 {[%clk 0:00:32.1]} 21... Nf5 {[%clk 0:00:42.7]} 22. Bb2 {[%clk 0:00:30.1]} 22... Nd6 {[%clk 0:00:42]} 23. Bd4 {[%clk 0:00:26.8]} 23... Rab8 {[%clk 0:00:39]} 24. c3 {[%clk 0:00:25.7]} 24... Rb7 {[%clk 0:00:38.3]} 25. a4 {[%clk 0:00:24.9]} 25... Nf5 {[%clk 0:00:37.3]} 26. a5 {[%clk 0:00:23.9]} 26... Nxd4 {[%clk 0:00:36.5]} 27. cxd4 {[%clk 0:00:23]} 27... bxa5 {[%clk 0:00:36]} 28. Rxa5 {[%clk 0:00:21.5]} 28... Re7 {[%clk 0:00:35.4]} 29. Ra3 {[%clk 0:00:19.8]} 29... f5 {[%clk 0:00:35]} 30. Rd1 {[%clk 0:00:18.5]} 30... f4 {[%clk 0:00:34.2]} 31. e4 {[%clk 0:00:17.4]} 31... Ref7 {[%clk 0:00:33.8]} 32. d5 {[%clk 0:00:16.2]} 32... Rf6 {[%clk 0:00:33.4]} 33. d6 {[%clk 0:00:14.9]} 33... Rg6+ {[%clk 0:00:33.1]} 34. Kf1 {[%clk 0:00:12.9]} 34... Rd8 {[%clk 0:00:32.8]} 35. d7 {[%clk 0:00:11.8]} 35... Rf6 {[%clk 0:00:30.4]} 36. Rc3 {[%clk 0:00:10.6]} 36... Rf7 {[%clk 0:00:29.1]} 37. Rc8 {[%clk 0:00:08.4]} 37... Rxd7 {[%clk 0:00:26.9]} 38. Rxd8+ {[%clk 0:00:06.7]} 38... Rxd8 {[%clk 0:00:26.5]} 39. Rxd8+ {[%clk 0:00:05.8]} 39... Kf7 {[%clk 0:00:26.3]} 40. Rd5 {[%clk 0:00:02.8]} 40... Kf6 {[%clk 0:00:25.9]} 41. Rf5+ {[%clk 0:00:02.1]} 41... Ke6 {[%clk 0:00:25.3]} 42. Ke2 {[%clk 0:00:01.7]} 42... g6 {[%clk 0:00:22.9]} 43. Rc5 {[%clk 0:00:00.2]} 43... h5 {[%clk 0:00:21.3]} 0-1

[Event "Live Chess"]
[Site "Chess.com"]
[Date "2011.02.01"]
[Round "-"]
[White "hipposcottimus"]
[Black "sekar_risbaya"]
[Result "1-0"]
[CurrentPosition "8/5ppp/5k2/8/1p1b1PP1/3P4/b6P/5R1K b - g3"]
[Timezone "UTC"]
[ECO "C41"]
[ECOUrl "https://www.chess.com/openings/Philidor-Defense-3.Bc4-Nf6"]
[UTCDate "2011.02.01"]
[UTCTime "04:30:30"]
[WhiteElo "1692"]
[BlackElo "1613"]
[TimeControl "60"]
[Termination "hipposcottimus won on time"]
[StartTime "04:30:30"]
[EndDate "2011.02.01"]
[EndTime "04:32:39"]
[Link "https://www.chess.com/game/live/93524279"]

1. e4 {[%clk 0:01:00]} 1... e5 {[%clk 0:01:00]} 2. Nf3 {[%clk 0:00:58.4]} 2... d6 {[%clk 0:00:58.7]} 3. Bc4 {[%clk 0:00:58.1]} 3... Nf6 {[%clk 0:00:56.6]} 4. d4 {[%clk 0:00:57.5]} 4... Be7 {[%clk 0:00:55.9]} 5. dxe5 {[%clk 0:00:56.6]} 5... dxe5 {[%clk 0:00:55.2]} 6. Qxd8+ {[%clk 0:00:54]} 6... Bxd8 {[%clk 0:00:53.6]} 7. Nxe5 {[%clk 0:00:53.7]} 7... O-O {[%clk 0:00:52.7]} 8. f3 {[%clk 0:00:51.6]} 8... Nc6 {[%clk 0:00:48.9]} 9. Bf4 {[%clk 0:00:50.8]} 9... Na5 {[%clk 0:00:46.5]} 10. Bd3 {[%clk 0:00:48.7]} 10... c5 {[%clk 0:00:44.4]} 11. b3 {[%clk 0:00:45.9]} 11... b5 {[%clk 0:00:43.1]} 12. O-O {[%clk 0:00:43.9]} 12... a6 {[%clk 0:00:42.2]} 13. Nc3 {[%clk 0:00:41.6]} 13... Bb6 {[%clk 0:00:40.7]} 14. Nd5 {[%clk 0:00:39.6]} 14... Nxd5 {[%clk 0:00:36]} 15. exd5 {[%clk 0:00:39.2]} 15... c4+ {[%clk 0:00:35.2]} 16. Kh1 {[%clk 0:00:33.6]} 16... cxd3 {[%clk 0:00:34.6]} 17. cxd3 {[%clk 0:00:32.8]} 17... Bb7 {[%clk 0:00:32.6]} 18. Nd7 {[%clk 0:00:31.4]} 18... Ba7 {[%clk 0:00:29.9]} 19. Nxf8 {[%clk 0:00:29.8]} 19... Rxf8 {[%clk 0:00:29.4]} 20. Bc7 {[%clk 0:00:29.5]} 20... Bd4 {[%clk 0:00:20.8]} 21. Rac1 {[%clk 0:00:24.5]} 21... Nxb3 {[%clk 0:00:18]} 22. axb3 {[%clk 0:00:22.8]} 22... Bxd5 {[%clk 0:00:17.6]} 23. Bd6 {[%clk 0:00:18.3]} 23... Bxb3 {[%clk 0:00:16.9]} 24. Bxf8 {[%clk 0:00:16.7]} 24... Kxf8 {[%clk 0:00:16.2]} 25. Rc8+ {[%clk 0:00:16.3]} 25... Ke7 {[%clk 0:00:14.4]} 26. Rc7+ {[%clk 0:00:16]} 26... Kd6 {[%clk 0:00:12.9]} 27. Ra7 {[%clk 0:00:13.7]} 27... Be6 {[%clk 0:00:07.2]} 28. Rxa6+ {[%clk 0:00:11.8]} 28... Ke7 {[%clk 0:00:06.4]} 29. Ra7+ {[%clk 0:00:10.6]} 29... Kf6 {[%clk 0:00:04.6]} 30. Ra2 {[%clk 0:00:07.8]} 30... Bxa2 {[%clk 0:00:01.5]} 31. f4 {[%clk 0:00:07.5]} 31... b4 {[%clk 0:00:00.7]} 32. g4 {[%clk 0:00:07]} 1-0

[Event "Live Chess"]
[Site "Chess.com"]
[Date "2011.02.01"]
[Round "-"]
[White "sekar_risbaya"]
[Black "hipposcottimus"]
[Result "0-1"]
[CurrentPosition "6k1/6pp/4b3/3R4/8/5P1P/P5PK/2r5 w - -"]
[Timezone "UTC"]
[ECO "C55"]
[ECOUrl "https://www.chess.com/openings/Italian-Game-Two-Knights-Defense-4.O-O"]
[UTCDate "2011.02.01"]
[UTCTime "04:27:45"]
[WhiteElo "1620"]
[BlackElo "1685"]
[TimeControl "60"]
[Termination "hipposcottimus won on time"]
[StartTime "04:27:45"]
[EndDate "2011.02.01"]
[EndTime "04:29:50"]
[Link "https://www.chess.com/game/live/93523682"]

1. e4 {[%clk 0:01:00]} 1... e5 {[%clk 0:01:00]} 2. Nf3 {[%clk 0:00:59.4]} 2... Nc6 {[%clk 0:00:59.3]} 3. Bc4 {[%clk 0:00:58.9]} 3... Nf6 {[%clk 0:00:58.9]} 4. O-O {[%clk 0:00:57.9]} 4... d5 {[%clk 0:00:58.5]} 5. exd5 {[%clk 0:00:56.4]} 5... Nxd5 {[%clk 0:00:56.7]} 6. Nxe5 {[%clk 0:00:55.1]} 6... Nxe5 {[%clk 0:00:53.1]} 7. Re1 {[%clk 0:00:54.3]} 7... Bd6 {[%clk 0:00:52.2]} 8. d4 {[%clk 0:00:53.2]} 8... O-O {[%clk 0:00:51.8]} 9. dxe5 {[%clk 0:00:52.3]} 9... Bb4 {[%clk 0:00:51.4]} 10. c3 {[%clk 0:00:50.3]} 10... Nb6 {[%clk 0:00:38.5]} 11. Bxf7+ {[%clk 0:00:44.4]} 11... Kxf7 {[%clk 0:00:36.9]} 12. c4 {[%clk 0:00:43.6]} 12... Kg8 {[%clk 0:00:36.6]} 13. Qxd8 {[%clk 0:00:40.3]} 13... Rxd8 {[%clk 0:00:34.3]} 14. Rf1 {[%clk 0:00:39.4]} 14... Nxc4 {[%clk 0:00:32.8]} 15. Nc3 {[%clk 0:00:35.4]} 15... Bxc3 {[%clk 0:00:31.3]} 16. bxc3 {[%clk 0:00:34.1]} 16... Rd5 {[%clk 0:00:29.8]} 17. e6 {[%clk 0:00:32.3]} 17... Bxe6 {[%clk 0:00:28.2]} 18. Bf4 {[%clk 0:00:30.5]} 18... Rc8 {[%clk 0:00:26.7]} 19. Rab1 {[%clk 0:00:28.3]} 19... Bf5 {[%clk 0:00:26.1]} 20. Rxb7 {[%clk 0:00:26.3]} 20... Na5 {[%clk 0:00:24.5]} 21. Rxa7 {[%clk 0:00:24.4]} 21... Nc4 {[%clk 0:00:23]} 22. Re1 {[%clk 0:00:21.4]} 22... Nd6 {[%clk 0:00:21.8]} 23. h3 {[%clk 0:00:18.7]} 23... Ne4 {[%clk 0:00:20]} 24. f3 {[%clk 0:00:16.4]} 24... Nxc3 {[%clk 0:00:18.4]} 25. Re7 {[%clk 0:00:14.8]} 25... Rc5 {[%clk 0:00:15.9]} 26. Bxc7 {[%clk 0:00:12.9]} 26... Nd5 {[%clk 0:00:13.6]} 27. Re5 {[%clk 0:00:06.2]} 27... R8xc7 {[%clk 0:00:11.2]} 28. Rxc7 {[%clk 0:00:04.3]} 28... Rxc7 {[%clk 0:00:10.3]} 29. Rxd5 {[%clk 0:00:02.7]} 29... Rc1+ {[%clk 0:00:10.1]} 30. Kh2 {[%clk 0:00:00.9]} 30... Be6 {[%clk 0:00:09.7]} 0-1

[Event "Live Chess"]
[Site "Chess.com"]
[Date "2011.02.01"]
[Round "-"]
[White "hipposcottimus"]
[Black "Loukienko"]
[Result "1-0"]
[CurrentPosition "3r2k1/pQ3ppp/8/2p5/2P1P3/7P/PP1q1PP1/5RK1 b - -"]
[Timezone "UTC"]
[ECO "B20"]
[ECOUrl "https://www.chess.com/openings/Sicilian-Defense"]
[UTCDate "2011.02.01"]
[UTCTime "04:23:51"]
[WhiteElo "1678"]
[BlackElo "1682"]
[TimeControl "60"]
[Termination "hipposcottimus won on time"]
[StartTime "04:23:51"]
[EndDate "2011.02.01"]
[EndTime "04:25:47"]
[Link "https://www.chess.com/game/live/93522902"]

1. e4 {[%clk 0:01:00]} 1... c5 {[%clk 0:01:00]} 2. Bb5 {[%clk 0:00:58.4]} 2... Nc6 {[%clk 0:00:58.3]} 3. Bxc6 {[%clk 0:00:57.4]} 3... bxc6 {[%clk 0:00:57.1]} 4. c4 {[%clk 0:00:57.1]} 4... e6 {[%clk 0:00:55.5]} 5. d3 {[%clk 0:00:56.9]} 5... d5 {[%clk 0:00:54.8]} 6. Nc3 {[%clk 0:00:56.6]} 6... dxe4 {[%clk 0:00:53.1]} 7. Nxe4 {[%clk 0:00:53]} 7... Nf6 {[%clk 0:00:50.2]} 8. Qe2 {[%clk 0:00:50.8]} 8... Bd6 {[%clk 0:00:43.4]} 9. Nf3 {[%clk 0:00:48.4]} 9... O-O {[%clk 0:00:38.2]} 10. O-O {[%clk 0:00:46.6]} 10... e5 {[%clk 0:00:34.4]} 11. Nxf6+ {[%clk 0:00:42.2]} 11... Qxf6 {[%clk 0:00:33]} 12. Bg5 {[%clk 0:00:41.9]} 12... Qg6 {[%clk 0:00:30.6]} 13. h3 {[%clk 0:00:36.7]} 13... Re8 {[%clk 0:00:28.4]} 14. Qe4 {[%clk 0:00:35.2]} 14... Bf5 {[%clk 0:00:25.8]} 15. Qxc6 {[%clk 0:00:32.8]} 15... Rad8 {[%clk 0:00:21.3]} 16. Rfd1 {[%clk 0:00:29.7]} 16... e4 {[%clk 0:00:19.8]} 17. Bxd8 {[%clk 0:00:24.6]} 17... Rxd8 {[%clk 0:00:14]} 18. Nh4 {[%clk 0:00:21]} 18... Qg5 {[%clk 0:00:10.9]} 19. Nxf5 {[%clk 0:00:20]} 19... Qxf5 {[%clk 0:00:10.3]} 20. dxe4 {[%clk 0:00:18.5]} 20... Qe5 {[%clk 0:00:06.2]} 21. Rxd6 {[%clk 0:00:18]} 21... Qxd6 {[%clk 0:00:04.7]} 22. Qb7 {[%clk 0:00:16.8]} 22... Qd2 {[%clk 0:00:00.4]} 23. Rf1 {[%clk 0:00:15.4]} 1-0

[Event "Live Chess"]
[Site "Chess.com"]
[Date "2011.02.01"]
[Round "-"]
[White "tattooindude"]
[Black "hipposcottimus"]
[Result "1-0"]
[CurrentPosition "7k/p4Bp1/n1bN2Pp/1p5P/8/P2p4/1P1B2r1/R3KR2 b - -"]
[Timezone "UTC"]
[ECO "A00"]
[ECOUrl "https://www.chess.com/openings/Mieses-Opening-1...d5"]
[UTCDate "2011.02.01"]
[UTCTime "04:21:32"]
[WhiteElo "1705"]
[BlackElo "1669"]
[TimeControl "60"]
[Termination "tattooindude won on time"]
[StartTime "04:21:32"]
[EndDate "2011.02.01"]
[EndTime "04:23:40"]
[Link "https://www.chess.com/game/live/93522387"]

1. d3 {[%clk 0:01:00]} 1... d5 {[%clk 0:01:00]} 2. Nd2 {[%clk 0:00:59.9]} 2... b5 {[%clk 0:00:56.7]} 3. e3 {[%clk 0:00:59.8]} 3... c5 {[%clk 0:00:56]} 4. Ne2 {[%clk 0:00:59.7]} 4... e5 {[%clk 0:00:55.3]} 5. h3 {[%clk 0:00:59.6]} 5... c4 {[%clk 0:00:54.6]} 6. g3 {[%clk 0:00:58.5]} 6... d4 {[%clk 0:00:53.7]} 7. e4 {[%clk 0:00:57]} 7... cxd3 {[%clk 0:00:52.5]} 8. cxd3 {[%clk 0:00:56.2]} 8... f5 {[%clk 0:00:52]} 9. exf5 {[%clk 0:00:53.7]} 9... Bxf5 {[%clk 0:00:50.9]} 10. g4 {[%clk 0:00:53.6]} 10... Nf6 {[%clk 0:00:50.5]} 11. Ng3 {[%clk 0:00:53.5]} 11... Bg6 {[%clk 0:00:49.2]} 12. Bg2 {[%clk 0:00:51.9]} 12... e4 {[%clk 0:00:43.7]} 13. dxe4 {[%clk 0:00:50.2]} 13... Na6 {[%clk 0:00:35.5]} 14. e5 {[%clk 0:00:48.9]} 14... Qe7 {[%clk 0:00:30.5]} 15. Bxa8 {[%clk 0:00:45.5]} 15... Qxe5+ {[%clk 0:00:29.5]} 16. Qe2 {[%clk 0:00:38.6]} 16... Qxe2+ {[%clk 0:00:27.8]} 17. Kxe2 {[%clk 0:00:37.8]} 17... d3+ {[%clk 0:00:27.5]} 18. Kf1 {[%clk 0:00:34.8]} 18... Bb4 {[%clk 0:00:27.1]} 19. Bf3 {[%clk 0:00:32.2]} 19... O-O {[%clk 0:00:26.8]} 20. h4 {[%clk 0:00:30.6]} 20... Be8 {[%clk 0:00:22.5]} 21. h5 {[%clk 0:00:29.5]} 21... Nd5 {[%clk 0:00:18.8]} 22. Bxd5+ {[%clk 0:00:27.3]} 22... Kh8 {[%clk 0:00:17.5]} 23. g5 {[%clk 0:00:25.5]} 23... Bc5 {[%clk 0:00:12.8]} 24. g6 {[%clk 0:00:24]} 24... Rxf2+ {[%clk 0:00:10.6]} 25. Ke1 {[%clk 0:00:21.4]} 25... h6 {[%clk 0:00:10]} 26. Bf7 {[%clk 0:00:18.3]} 26... Bd7 {[%clk 0:00:08.1]} 27. Nge4 {[%clk 0:00:15.8]} 27... Rg2 {[%clk 0:00:05.6]} 28. Rf1 {[%clk 0:00:13.9]} 28... Bb4 {[%clk 0:00:02.4]} 29. a3 {[%clk 0:00:11.5]} 29... Bxd2+ {[%clk 0:00:00.7]} 30. Bxd2 {[%clk 0:00:10.7]} 30... Bc6 {[%clk 0:00:00.3]} 31. Nd6 {[%clk 0:00:07.5]} 1-0

[Event "Live Chess"]
[Site "Chess.com"]
[Date "2011.02.01"]
[Round "-"]
[White "hipposcottimus"]
[Black "tattooindude"]
[Result "0-1"]
[CurrentPosition "2k3r1/2p1BR1r/pp6/3P4/2P3q1/6Pb/PP2nK1P/R7 w - -"]
[Timezone "UTC"]
[ECO "C00"]
[ECOUrl "https://www.chess.com/openings/French-Defense-Normal-Variation"]
[UTCDate "2011.02.01"]
[UTCTime "04:19:11"]
[WhiteElo "1669"]
[BlackElo "1705"]
[TimeControl "60"]
[Termination "tattooindude won on time"]
[StartTime "04:19:11"]
[EndDate "2011.02.01"]
[EndTime "04:21:11"]
[Link "https://www.chess.com/game/live/93521832"]

1. e4 {[%clk 0:01:00]} 1... e6 {[%clk 0:01:00]} 2. d4 {[%clk 0:00:58.2]} 2... Ne7 {[%clk 0:00:59.9]} 3. c4 {[%clk 0:00:56.9]} 3... d6 {[%clk 0:00:59.3]} 4. d5 {[%clk 0:00:56.4]} 4... e5 {[%clk 0:00:58.5]} 5. Nc3 {[%clk 0:00:55.9]} 5... Nd7 {[%clk 0:00:57.8]} 6. f4 {[%clk 0:00:55.5]} 6... b6 {[%clk 0:00:57.2]} 7. fxe5 {[%clk 0:00:54.9]} 7... dxe5 {[%clk 0:00:55.6]} 8. Nf3 {[%clk 0:00:54.6]} 8... h6 {[%clk 0:00:53.9]} 9. Be2 {[%clk 0:00:53.9]} 9... g5 {[%clk 0:00:53.2]} 10. Nxg5 {[%clk 0:00:51.8]} 10... hxg5 {[%clk 0:00:51.5]} 11. Bxg5 {[%clk 0:00:51.5]} 11... Bh6 {[%clk 0:00:50.3]} 12. Bh4 {[%clk 0:00:46.9]} 12... Bf4 {[%clk 0:00:49]} 13. g3 {[%clk 0:00:43.4]} 13... Be3 {[%clk 0:00:44.3]} 14. Qd3 {[%clk 0:00:41.4]} 14... Bd4 {[%clk 0:00:42.4]} 15. Nb5 {[%clk 0:00:39.2]} 15... Nc5 {[%clk 0:00:41.1]} 16. Qf3 {[%clk 0:00:36.1]} 16... a6 {[%clk 0:00:39.4]} 17. Nxd4 {[%clk 0:00:34.4]} 17... exd4 {[%clk 0:00:37.8]} 18. O-O {[%clk 0:00:31.8]} 18... Rh7 {[%clk 0:00:31.6]} 19. Qf6 {[%clk 0:00:19.4]} 19... Bh3 {[%clk 0:00:25.7]} 20. Qxd4 {[%clk 0:00:18]} 20... Qd7 {[%clk 0:00:21.7]} 21. Rf2 {[%clk 0:00:16.5]} 21... O-O-O {[%clk 0:00:19.7]} 22. e5 {[%clk 0:00:12.5]} 22... Rg8 {[%clk 0:00:18.1]} 23. e6 {[%clk 0:00:10.9]} 23... Nxe6 {[%clk 0:00:17.3]} 24. Bxe7 {[%clk 0:00:05.5]} 24... Nxd4 {[%clk 0:00:15.7]} 25. Rxf7 {[%clk 0:00:03.9]} 25... Nxe2+ {[%clk 0:00:14]} 26. Kf2 {[%clk 0:00:02.1]} 26... Qg4 {[%clk 0:00:11.6]} 0-1